[Event "CCT Chessable Masters D-III 2024"]
[Site "Online"]
[Date "2024.02.04"]
[Round "54"]
[White "Santos Latasa, Jaime"]
[Black "Bortnyk, Oleksandr"]
[Result "0-1"]
[ECO "E81"]
[WhiteElo "2615"]
[BlackElo "2649"]
[Annotator "ChessBase"]
[PlyCount "182"]
[EventDate "2024.01.12"]
[EventType "k.o."]
[EventCountry "NET"]
[SourceTitle "playchess.com"]
[Source "ChessBase"]
[SourceQuality "1"]
[TimeControl "600+2"]

1. d4 {[%emt 0:00:05]} Nf6 {[%emt 0:01:37]} 2. c4 {[%emt 0:00:03]} g6 {[%emt 0:00:05]} 3. f3 {[%emt 0:00:04]} Bg7 {[%emt 0:00:03]} 4. e4 {[%emt 0:00:03]} d6 {[%emt 0:00:03]} 5. Nc3 {[%emt 0:00:03]} a6 {[%emt 0:00:04]} 6. Nge2 {[%emt 0:00:04]} O-O {[%emt 0:00:06]} 7. Be3 {[%emt 0:00:04]} c5 {[%emt 0:00:04]} 8. dxc5 {[%emt 0:00:26]} dxc5 {[%emt 0:00:02]} 9. Qxd8 {[%emt 0:00:03]} Rxd8 {[%emt 0:00:02]} 10. Bxc5 {[%emt 0:00:03]} Nc6 {[%emt 0:00:04]} 11. Ba3 {[%emt 0:00:03]} Be6 {[%emt 0:00:51]} 12. Nd5 {[%emt 0:00:08]} b5 {[%emt 0:00:14]} 13. Nxe7+ {[%emt 0:00:58]} Nxe7 {[%emt 0:00:05]} 14. Bxe7 {[%emt 0:00:02]} Rd7 {[%emt 0:00:13]} 15. Bb4 {[%emt 0:00:04]} a5 {[%emt 0:00:07]} 16. Bc3 {[%emt 0:00:06]} b4 {[%emt 0:00:08]} 17. Be5 {[%emt 0:00:05]} Bxc4 {[%emt 0:00:08]} 18. Nf4 {[%emt 0:00:15]} Bxf1 {[%emt 0:00:06]} 19. Rxf1 {[%emt 0:00:02]} Re8 {[%emt 0:00:38]} 20. Bxf6 {[%emt 0:00:04]} Bxf6 {[%emt 0:00:02]} 21. Rd1 {[%emt 0:00:17]} Rxd1+ {[%emt 0:00:11]} 22. Kxd1 {[%emt 0:00:02]} Bxb2 {[%emt 0:00:03]} 23. Kc2 {[%emt 0:00:04]} Be5 {[%emt 0:00:06]} 24. Nd5 {[%emt 0:00:03]} Rc8+ {[%emt 0:00:31]} 25. Kb3 {[%emt 0:00:05]} Rc5 {[%emt 0:00:04]} 26. h3 {[%emt 0:00:21]} f5 {[%emt 0:00:34]} 27. Rf2 {[%emt 0:00:11]} fxe4 {[%emt 0:00:09]} 28. fxe4 {[%emt 0:00:02]} Kg7 {[%emt 0:00:04]} 29. Ka4 {[%emt 0:00:08]} h5 {[%emt 0:00:09]} 30. Nb6 {[%emt 0:00:12]} Bc7 {[%emt 0:00:25]} 31. Nd5 {[%emt 0:00:19]} Be5 {[%emt 0:00:03]} 32. Nb6 {[%emt 0:00:35]} Bc7 {[%emt 0:00:03]} 33. Nd7 {[%emt 0:00:03]} Rc3 {[%emt 0:00:16]} 34. e5 {[%emt 0:00:07]} Re3 {[%emt 0:00:13]} 35. Rc2 {[%emt 0:00:37]} Bxe5 {[%emt 0:00:07]} 36. Kxa5 {[%emt 0:00:03]} Bd6 {[%emt 0:00:25]} 37. Rb2 {[%emt 0:00:38]} g5 {[%emt 0:00:08]} 38. Kb5 {[%emt 0:00:07]} g4 {[%emt 0:00:06]} 39. hxg4 {[%emt 0:00:02]} hxg4 {[%emt 0:00:02]} 40. Nb6 {[%emt 0:00:10]} Rd3 {[%emt 0:00:29]} 41. Kc6 {[%emt 0:00:21]} g3 {[%emt 0:00:26]} 42. Nd5 {[%emt 0:00:10]} Be5 {[%emt 0:00:04]} 43. Re2 {[%emt 0:00:15]} Bc3 {[%emt 0:00:07]} 44. Kc5 {[%emt 0:00:07]} Rd1 {[%emt 0:00:22]} 45. Nxb4 {[%emt 0:00:16]} Be1 {[%emt 0:00:16]} 46. Kc4 {[%emt 0:00:13]} Bf2 {[%emt 0:00:14]} 47. Nd3 {[%emt 0:00:04]} Rg1 {[%emt 0:00:06]} 48. Nf4 {[%emt 0:00:06]} Kf6 {[%emt 0:00:05]} 49. Re8 {[%emt 0:01:09]} Kf5 {[%emt 0:00:03]} 50. Rf8+ {[%emt 0:00:04]} Ke4 {[%emt 0:00:02]} 51. a4 {[%emt 0:00:06]} Rc1+ {[%emt 0:00:30]} 52. Kb5 {[%emt 0:00:06]} Rb1+ {[%emt 0:00:02]} 53. Ka6 {[%emt 0:00:04]} Rb6+ {[%emt 0:00:06]} 54. Ka5 {[%emt 0:00:04]} Rb2 {[%emt 0:00:03]} 55. Nh5 {[%emt 0:00:06]} Ke5 {[%emt 0:00:12]} 56. Rf3 {[%emt 0:00:09]} Be1+ {[%emt 0:00:04]} 57. Ka6 {[%emt 0:00:05]} Kd4 {[%emt 0:00:03]} 58. Nf4 {[%emt 0:00:07]} Ra2 {[%emt 0:00:05]} 59. Kb5 {[%emt 0:00:07]} Rb2+ {[%emt 0:00:02]} 60. Kc6 {[%emt 0:00:06]} Ra2 {[%emt 0:00:03]} 61. Ne6+ {[%emt 0:00:20]} Ke4 {[%emt 0:00:02]} 62. Nc5+ {[%emt 0:00:05]} Kd4 {[%emt 0:00:03]} 63. Rd3+ {[%emt 0:00:09]} Kc4 {[%emt 0:00:03]} 64. Re3 {[%emt 0:00:03]} Bf2 {[%emt 0:00:03]} 65. Re4+ {[%emt 0:00:03]} Kc3 {[%emt 0:00:02]} 66. Ne6 {[%emt 0:00:10]} Bg1 {[%emt 0:00:03]} 67. Nf4 {[%emt 0:00:07]} Bf2 {[%emt 0:00:02]} 68. Kd5 {[%emt 0:00:09]} Rd2+ {[%emt 0:00:03]} 69. Ke6 {[%emt 0:00:03]} Ra2 {[%emt 0:00:02]} 70. Kf5 {[%emt 0:00:04]} Ra1 {[%emt 0:00:03]} 71. Kg4 {[%emt 0:00:04]} Kd2 {[%emt 0:00:03]} 72. Nh5 {[%emt 0:00:05]} Kd3 {[%emt 0:00:02]} 73. Rb4 {[%emt 0:00:05]} Bc5 {[%emt 0:00:02]} 74. Rf4 {[%emt 0:00:03]} Bd4 {[%emt 0:00:03]} 75. Nxg3 {[%emt 0:00:04]} Be5 {[%emt 0:00:03]} 76. Rb4 {[%emt 0:00:05]} Bd6 {[%emt 0:00:02]} 77. Rb3+ {[%emt 0:00:04]} Kc4 {[%emt 0:00:03]} 78. Re3 {[%emt 0:00:04]} Bc5 {[%emt 0:00:02]} 79. Re4+ {[%emt 0:00:03]} Kd5 {[%emt 0:00:02]} 80. Rf4 {[%emt 0:00:04]} Bd6 {[%emt 0:00:02]} 81. Rf5+ {[%emt 0:00:03]} Ke6 {[%emt 0:00:02]} 82. Ra5 {[%emt 0:00:04]} Bb4 {[%emt 0:00:03]} 83. Ra6+ {[%emt 0:00:03]} Kd5 {[%emt 0:00:03]} 84. Nh5 {[%emt 0:00:03]} Bc5 {[%emt 0:00:02]} 85. Nf4+ {[%emt 0:00:03]} Kc4 {[%emt 0:00:02]} 86. g3 {[%emt 0:00:02]} Bb4 {[%emt 0:00:02]} 87. Nh5 {[%emt 0:00:04]} Rd1 {[%emt 0:00:02]} 88. Nf4 {[%emt 0:00:03]} Rd4 {[%emt 0:00:03]} 89. Kf5 {[%emt 0:00:03]} Rd8 {[%emt 0:00:02]} 90. g4 {[%emt 0:00:03]} Rf8+ {[%emt 0:00:03]} 91. Ke4 {[%emt 0:00:02]} Re8+ {[%emt 0:00:02]} 0-1

[Event "CCT Chessable Masters D-III 2024"]
[Site "Online"]
[Date "2024.02.04"]
[Round "54"]
[White "bardiya_Daneshvar"]
[Black "Matlakov, Maxim"]
[Result "1-0"]
[ECO "A14"]
[WhiteElo "2609"]
[BlackElo "2662"]
[Annotator "ChessBase"]
[PlyCount "115"]
[EventDate "2024.01.12"]
[EventType "k.o."]
[EventCountry "NET"]
[SourceTitle "playchess.com"]
[Source "ChessBase"]
[SourceQuality "1"]
[TimeControl "600+2"]

1. c4 {[%emt 0:00:02]} Nf6 {[%emt 0:00:17]} 2. Nf3 {[%emt 0:00:01]} e6 {[%emt 0:00:05]} 3. b3 {[%emt 0:00:01]} d5 {[%emt 0:00:02]} 4. Bb2 {[%emt 0:00:00]} Be7 {[%emt 0:00:05]} 5. g3 {[%emt 0:00:03]} O-O {[%emt 0:00:02]} 6. Bg2 {[%emt 0:00:01]} c5 {[%emt 0:00:01]} 7. cxd5 {[%emt 0:00:09]} Nxd5 {[%emt 0:00:01]} 8. O-O {[%emt 0:00:04]} Nc6 {[%emt 0:00:02]} 9. Nc3 {[%emt 0:00:06]} Bf6 {[%emt 0:00:04]} 10. Qc1 {[%emt 0:00:04]} b6 {[%emt 0:00:09]} 11. Nxd5 {[%emt 0:00:10]} exd5 {[%emt 0:00:27]} 12. d4 {[%emt 0:00:02]} Ba6 {[%emt 0:00:23]} 13. Re1 {[%emt 0:00:14]} Nxd4 {[%emt 0:02:35]} 14. Nxd4 {[%emt 0:00:16]} cxd4 {[%emt 0:00:02]} 15. Qd2 {[%emt 0:00:22]} Re8 {[%emt 0:00:07]} 16. Bxd4 {[%emt 0:01:20]} Bxd4 {[%emt 0:01:17]} 17. Qxd4 {[%emt 0:00:03]} Rxe2 {[%emt 0:00:02]} 18. Rxe2 {[%emt 0:01:01]} Bxe2 {[%emt 0:00:00]} 19. Re1 {[%emt 0:01:31]} Bb5 {[%emt 0:00:07]} 20. Bxd5 {[%emt 0:00:16]} Bc6 {[%emt 0:01:50]} 21. Rd1 {[%emt 0:00:10]} Bxd5 {[%emt 0:00:06]} 22. Qxd5 {[%emt 0:00:00]} Qxd5 {[%emt 0:00:36]} 23. Rxd5 {[%emt 0:00:00]} a5 {[%emt 0:00:01]} 24. Rd7 {[%emt 0:00:47]} Rb8 {[%emt 0:00:11]} 25. Kg2 {[%emt 0:00:46]} Kf8 {[%emt 0:00:01]} 26. Kf3 {[%emt 0:00:50]} Ke8 {[%emt 0:00:01]} 27. Rc7 {[%emt 0:00:11]} Rd8 {[%emt 0:00:02]} 28. Ke3 {[%emt 0:00:12]} Rd6 {[%emt 0:00:06]} 29. a4 {[%emt 0:00:25]} g5 {[%emt 0:00:05]} 30. Rb7 {[%emt 0:00:12]} h5 {[%emt 0:00:27]} 31. Rb8+ {[%emt 0:00:18]} Ke7 {[%emt 0:00:01]} 32. Rh8 {[%emt 0:00:01]} Re6+ {[%emt 0:00:20]} 33. Kd3 {[%emt 0:00:02]} Rf6 {[%emt 0:00:35]} 34. Ke2 {[%emt 0:00:05]} Re6+ {[%emt 0:00:03]} 35. Kf1 {[%emt 0:00:04]} Re4 {[%emt 0:00:17]} 36. Rxh5 {[%emt 0:00:04]} f6 {[%emt 0:00:07]} 37. h4 {[%emt 0:00:19]} Rb4 {[%emt 0:00:09]} 38. hxg5 {[%emt 0:00:03]} fxg5 {[%emt 0:00:01]} 39. Rxg5 {[%emt 0:00:02]} Rxb3 {[%emt 0:00:00]} 40. Rg4 {[%emt 0:00:22]} Ke6 {[%emt 0:00:05]} 41. Rf4 {[%emt 0:00:07]} Ke5 {[%emt 0:00:02]} 42. Ke2 {[%emt 0:00:02]} Ra3 {[%emt 0:00:15]} 43. Kd2 {[%emt 0:00:04]} Rb3 {[%emt 0:00:04]} 44. Kc2 {[%emt 0:00:02]} Ra3 {[%emt 0:00:01]} 45. Kb2 {[%emt 0:00:13]} Rd3 {[%emt 0:00:01]} 46. Rf8 {[%emt 0:00:06]} Rd4 {[%emt 0:00:01]} 47. Kb3 {[%emt 0:00:01]} Rb4+ {[%emt 0:00:03]} 48. Ka3 {[%emt 0:00:01]} Rc4 {[%emt 0:00:04]} 49. f3 {[%emt 0:00:06]} Rd4 {[%emt 0:00:04]} 50. g4 {[%emt 0:00:04]} Rd3+ {[%emt 0:00:06]} 51. Kb2 {[%emt 0:00:02]} Rd4 {[%emt 0:00:05]} 52. g5 {[%emt 0:00:11]} Ke6 {[%emt 0:00:05]} 53. g6 {[%emt 0:00:05]} Rd2+ {[%emt 0:00:01]} 54. Kc3 {[%emt 0:00:02]} Rg2 {[%emt 0:00:00]} 55. f4 {[%emt 0:00:03]} Ke7 {[%emt 0:00:02]} 56. Rf7+ {[%emt 0:00:01]} Ke8 {[%emt 0:00:00]} 57. f5 {[%emt 0:00:01]} Rg4 {[%emt 0:00:01]} 58. Rb7 {[%emt 0:00:02]} 1-0

[Event "CCT Chessable Masters D-III 2024"]
[Site "Online"]
[Date "2024.02.04"]
[Round "54"]
[White "Antipov, Mikhail Al."]
[Black "youngKID"]
[Result "1-0"]
[ECO "C47"]
[WhiteElo "2604"]
[BlackElo "2577"]
[Annotator "ChessBase"]
[PlyCount "71"]
[EventDate "2024.01.12"]
[EventType "k.o."]
[EventCountry "NET"]
[SourceTitle "playchess.com"]
[Source "ChessBase"]
[SourceQuality "1"]
[TimeControl "600+2"]

1. e4 {[%emt 0:00:02]} e5 {[%emt 0:00:06]} 2. Nf3 {[%emt 0:00:02]} Nc6 {[%emt 0:00:00]} 3. Nc3 {[%emt 0:00:02]} Nf6 {[%emt 0:00:03]} 4. h3 {[%emt 0:00:02]} Bb4 {[%emt 0:00:35]} 5. Bd3 {[%emt 0:00:08]} Bxc3 {[%emt 0:00:05]} 6. dxc3 {[%emt 0:00:02]} d5 {[%emt 0:00:07]} 7. exd5 {[%emt 0:00:45]} Qxd5 {[%emt 0:00:01]} 8. Qe2 {[%emt 0:00:02]} O-O {[%emt 0:00:52]} 9. Bc4 {[%emt 0:00:08]} Qd6 {[%emt 0:00:26]} 10. O-O {[%emt 0:00:53]} Be6 {[%emt 0:00:46]} 11. Bb5 {[%emt 0:01:20]} Bd5 {[%emt 0:02:18]} 12. Bxc6 {[%emt 0:00:24]} Bxc6 {[%emt 0:00:04]} 13. Qxe5 {[%emt 0:00:18]} Qxe5 {[%emt 0:00:02]} 14. Nxe5 {[%emt 0:00:01]} Be4 {[%emt 0:00:00]} 15. Bg5 {[%emt 0:00:13]} Bxc2 {[%emt 0:00:56]} 16. Bxf6 {[%emt 0:00:04]} gxf6 {[%emt 0:00:00]} 17. Nd7 {[%emt 0:00:02]} Rfd8 {[%emt 0:00:00]} 18. Nxf6+ {[%emt 0:00:04]} Kg7 {[%emt 0:00:01]} 19. Ng4 {[%emt 0:00:59]} Rd2 {[%emt 0:00:12]} 20. Ne5 {[%emt 0:00:34]} Bg6 {[%emt 0:00:32]} 21. Nc4 {[%emt 0:00:24]} Re2 {[%emt 0:00:08]} 22. f4 {[%emt 0:01:49]} f6 {[%emt 0:02:04]} 23. Rad1 {[%emt 0:00:27]} b5 {[%emt 0:00:30]} 24. Rd7+ {[%emt 0:00:36]} Kg8 {[%emt 0:00:18]} 25. f5 {[%emt 0:00:44]} Bf7 {[%emt 0:00:10]} 26. Nd2 {[%emt 0:00:10]} Be8 {[%emt 0:00:17]} 27. Rd3 {[%emt 0:00:10]} Bc6 {[%emt 0:00:01]} 28. Rf2 {[%emt 0:00:05]} Rae8 {[%emt 0:00:02]} 29. Nb3 {[%emt 0:00:07]} Re1+ {[%emt 0:00:06]} 30. Kh2 {[%emt 0:00:02]} R8e2 {[%emt 0:00:01]} 31. Rxe2 {[%emt 0:00:04]} Rxe2 {[%emt 0:00:01]} 32. Rg3+ {[%emt 0:00:00]} Kf7 {[%emt 0:00:05]} 33. Nd4 {[%emt 0:00:01]} Rxb2 {[%emt 0:00:01]} 34. Nxc6 {[%emt 0:00:01]} Rxa2 {[%emt 0:00:00]} 35. Re3 {[%emt 0:00:01]} Rc2 {[%emt 0:00:04]} 36. Nxa7 {[%emt 0:00:04]} 1-0

[Event "CCT Chessable Masters D-III 2024"]
[Site "Online"]
[Date "2024.02.04"]
[Round "54"]
[White "Indjic, Aleksandar"]
[Black "Tabatabaei, M. Amin"]
[Result "1-0"]
[ECO "C65"]
[WhiteElo "2595"]
[BlackElo "2696"]
[Annotator "ChessBase"]
[PlyCount "57"]
[EventDate "2024.01.12"]
[EventType "k.o."]
[EventCountry "NET"]
[SourceTitle "playchess.com"]
[Source "ChessBase"]
[SourceQuality "1"]
[TimeControl "600+2"]

1. e4 {[%emt 0:00:03]} e5 {[%emt 0:00:10]} 2. Nf3 {[%emt 0:00:02]} Nc6 {[%emt 0:00:03]} 3. Bb5 {[%emt 0:00:03]} Nf6 {[%emt 0:00:11]} 4. d3 {[%emt 0:00:01]} Bc5 {[%emt 0:00:03]} 5. Nbd2 {[%emt 0:00:07]} d6 {[%emt 0:00:11]} 6. c3 {[%emt 0:00:29]} O-O {[%emt 0:00:01]} 7. O-O {[%emt 0:00:02]} h6 {[%emt 0:00:53]} 8. h3 {[%emt 0:00:04]} a6 {[%emt 0:00:11]} 9. Bxc6 {[%emt 0:00:01]} bxc6 {[%emt 0:00:00]} 10. d4 {[%emt 0:00:01]} exd4 {[%emt 0:00:02]} 11. cxd4 {[%emt 0:00:00]} Bb6 {[%emt 0:00:27]} 12. Qc2 {[%emt 0:00:01]} c5 {[%emt 0:00:15]} 13. d5 {[%emt 0:00:02]} Re8 {[%emt 0:00:04]} 14. Re1 {[%emt 0:00:05]} Bb7 {[%emt 0:01:04]} 15. Nc4 {[%emt 0:00:33]} c6 {[%emt 0:00:00]} 16. Qb3 {[%emt 0:00:08]} cxd5 {[%emt 0:00:26]} 17. Qxb6 {[%emt 0:00:06]} dxe4 {[%emt 0:01:41]} 18. Qxb7 {[%emt 0:00:21]} exf3 {[%emt 0:00:01]} 19. Rxe8+ {[%emt 0:00:05]} Qxe8 {[%emt 0:00:00]} 20. Qxf3 {[%emt 0:01:13]} Qe1+ {[%emt 0:00:03]} 21. Kh2 {[%emt 0:00:01]} d5 {[%emt 0:00:01]} 22. b3 {[%emt 0:00:05]} Re8 {[%emt 0:00:09]} 23. Bb2 {[%emt 0:00:05]} Qe2 {[%emt 0:00:01]} 24. Bxf6 {[%emt 0:00:12]} Qxf3 {[%emt 0:00:14]} 25. gxf3 {[%emt 0:00:02]} dxc4 {[%emt 0:00:00]} 26. Rg1 {[%emt 0:00:06]} g6 {[%emt 0:00:03]} 27. bxc4 {[%emt 0:00:01]} Re6 {[%emt 0:00:02]} 28. Bc3 {[%emt 0:00:06]} Re2 {[%emt 0:00:00]} 29. Re1 {[%emt 0:00:02]} 1-0

[Event "CCT Chessable Masters D-III 2024"]
[Site "Online"]
[Date "2024.02.04"]
[Round "54"]
[White "youngKID"]
[Black "Antipov, Mikhail Al."]
[Result "1/2-1/2"]
[ECO "C67"]
[WhiteElo "2571"]
[BlackElo "2604"]
[Annotator "ChessBase"]
[PlyCount "100"]
[EventDate "2024.01.12"]
[EventType "k.o."]
[EventCountry "NET"]
[SourceTitle "playchess.com"]
[Source "ChessBase"]
[SourceQuality "1"]
[TimeControl "600+2"]

1. e4 {[%emt 0:00:02]} e5 {[%emt 0:00:04]} 2. Nf3 {[%emt 0:00:02]} Nc6 {[%emt 0:00:01]} 3. Bb5 {[%emt 0:00:01]} Nf6 {[%emt 0:00:01]} 4. O-O {[%emt 0:00:25]} Nxe4 {[%emt 0:00:01]} 5. Re1 {[%emt 0:00:01]} Nd6 {[%emt 0:00:01]} 6. a4 {[%emt 0:00:11]} Be7 {[%emt 0:00:07]} 7. Nc3 {[%emt 0:00:03]} a6 {[%emt 0:00:04]} 8. Bf1 {[%emt 0:00:02]} Nf5 {[%emt 0:02:06]} 9. Nxe5 {[%emt 0:00:27]} Nxe5 {[%emt 0:00:00]} 10. Rxe5 {[%emt 0:00:00]} d6 {[%emt 0:00:01]} 11. Re1 {[%emt 0:00:01]} d5 {[%emt 0:00:09]} 12. d4 {[%emt 0:00:26]} O-O {[%emt 0:00:14]} 13. Bf4 {[%emt 0:00:02]} c6 {[%emt 0:00:05]} 14. Qd2 {[%emt 0:01:04]} a5 {[%emt 0:00:59]} 15. Rad1 {[%emt 0:00:37]} Bf6 {[%emt 0:00:36]} 16. Ne2 {[%emt 0:00:52]} Re8 {[%emt 0:00:26]} 17. c3 {[%emt 0:00:06]} Nh4 {[%emt 0:01:02]} 18. Nc1 {[%emt 0:00:35]} Ng6 {[%emt 0:01:08]} 19. Rxe8+ {[%emt 0:00:20]} Qxe8 {[%emt 0:00:01]} 20. Re1 {[%emt 0:00:07]} Qd8 {[%emt 0:00:15]} 21. Bg3 {[%emt 0:00:10]} Bf5 {[%emt 0:00:05]} 22. Bd3 {[%emt 0:00:16]} Qd7 {[%emt 0:00:17]} 23. Bxf5 {[%emt 0:00:50]} Qxf5 {[%emt 0:00:00]} 24. Nd3 {[%emt 0:00:00]} h6 {[%emt 0:00:19]} 25. h3 {[%emt 0:00:11]} Nf8 {[%emt 0:00:14]} 26. Re2 {[%emt 0:00:57]} Ne6 {[%emt 0:00:12]} 27. Be5 {[%emt 0:00:22]} h5 {[%emt 0:00:04]} 28. Bxf6 {[%emt 0:00:06]} Qxf6 {[%emt 0:00:00]} 29. Re5 {[%emt 0:00:01]} g6 {[%emt 0:00:02]} 30. Qe3 {[%emt 0:00:04]} Kg7 {[%emt 0:00:07]} 31. f4 {[%emt 0:00:09]} h4 {[%emt 0:00:55]} 32. Qf2 {[%emt 0:00:38]} Nf8 {[%emt 0:00:04]} 33. Rg5 {[%emt 0:00:02]} Ne6 {[%emt 0:00:01]} 34. Rg4 {[%emt 0:00:03]} Qf5 {[%emt 0:00:01]} 35. Ne5 {[%emt 0:00:27]} Rh8 {[%emt 0:00:01]} 36. Kh2 {[%emt 0:00:29]} Kf8 {[%emt 0:00:38]} 37. Nf3 {[%emt 0:00:06]} Nxf4 {[%emt 0:00:08]} 38. Nxh4 {[%emt 0:00:05]} Nxh3 {[%emt 0:00:00]} 39. Qg3 {[%emt 0:00:10]} Nf2 {[%emt 0:00:24]} 40. Qd6+ {[%emt 0:00:44]} Kg7 {[%emt 0:00:08]} 41. Rf4 {[%emt 0:00:01]} Ne4 {[%emt 0:00:06]} 42. Qc7 {[%emt 0:00:05]} Qe6 {[%emt 0:00:09]} 43. Kg1 {[%emt 0:00:03]} Ng3 {[%emt 0:00:03]} 44. Kf2 {[%emt 0:00:01]} Ne4+ {[%emt 0:00:04]} 45. Kg1 {[%emt 0:00:03]} Ng3 {[%emt 0:00:00]} 46. Kf2 {[%emt 0:00:04]} Ne4+ {[%emt 0:00:02]} 47. Kf3 {[%emt 0:00:01]} Nd2+ {[%emt 0:00:05]} 48. Kg3 {[%emt 0:00:00]} Ne4+ {[%emt 0:00:01]} 49. Kf3 {[%emt 0:00:02]} Nd2+ {[%emt 0:00:01]} 50. Kf2 {[%emt 0:00:00]} Ne4+ {[%emt 0:00:00]} 1/2-1/2

[Event "CCT Chessable Masters D-III 2024"]
[Site "Online"]
[Date "2024.02.04"]
[Round "55"]
[White "Bortnyk, Oleksandr"]
[Black "Indjic, Aleksandar"]
[Result "1-0"]
[ECO "C27"]
[WhiteElo "2639"]
[BlackElo "2595"]
[Annotator "ChessBase"]
[PlyCount "129"]
[EventDate "2024.01.12"]
[EventType "k.o."]
[EventCountry "NET"]
[SourceTitle "playchess.com"]
[Source "ChessBase"]
[SourceQuality "1"]
[TimeControl "600+2"]

1. e4 {[%emt 0:00:02]} e5 {[%emt 0:00:03]} 2. Bc4 {[%emt 0:00:04]} Nf6 {[%emt 0:00:05]} 3. d3 {[%emt 0:00:00]} Bc5 {[%emt 0:00:01]} 4. Nc3 {[%emt 0:00:04]} c6 {[%emt 0:00:07]} 5. Qf3 {[%emt 0:00:16]} d6 {[%emt 0:00:49]} 6. Bg5 {[%emt 0:00:15]} Be6 {[%emt 0:00:01]} 7. Nge2 {[%emt 0:00:08]} Nbd7 {[%emt 0:00:03]} 8. Bxe6 {[%emt 0:00:13]} fxe6 {[%emt 0:00:01]} 9. Qh3 {[%emt 0:00:00]} Qe7 {[%emt 0:00:04]} 10. Na4 {[%emt 0:00:22]} Bb4+ {[%emt 0:00:03]} 11. c3 {[%emt 0:00:02]} Ba5 {[%emt 0:00:01]} 12. b4 {[%emt 0:00:01]} Bc7 {[%emt 0:00:01]} 13. O-O {[%emt 0:00:05]} h6 {[%emt 0:00:01]} 14. Be3 {[%emt 0:00:04]} a5 {[%emt 0:00:02]} 15. a3 {[%emt 0:00:07]} axb4 {[%emt 0:00:01]} 16. axb4 {[%emt 0:00:00]} O-O {[%emt 0:00:01]} 17. f4 {[%emt 0:00:05]} Ra6 {[%emt 0:00:30]} 18. Nb2 {[%emt 0:00:06]} Rfa8 {[%emt 0:00:08]} 19. Rab1 {[%emt 0:00:08]} b5 {[%emt 0:00:06]} 20. Kh1 {[%emt 0:00:30]} Ra3 {[%emt 0:00:04]} 21. Nd1 {[%emt 0:00:35]} Ra1 {[%emt 0:00:04]} 22. Nf2 {[%emt 0:00:05]} Rxb1 {[%emt 0:00:02]} 23. Rxb1 {[%emt 0:00:00]} Ra2 {[%emt 0:00:03]} 24. Re1 {[%emt 0:00:18]} Rc2 {[%emt 0:00:51]} 25. fxe5 {[%emt 0:01:05]} dxe5 {[%emt 0:00:13]} 26. Ng4 {[%emt 0:00:18]} Nxg4 {[%emt 0:00:01]} 27. Qxg4 {[%emt 0:00:01]} Nf6 {[%emt 0:00:03]} 28. Qf3 {[%emt 0:00:14]} Qf7 {[%emt 0:00:33]} 29. Rc1 {[%emt 0:00:16]} Ra2 {[%emt 0:00:12]} 30. Ng3 {[%emt 0:00:21]} Qg6 {[%emt 0:00:04]} 31. h3 {[%emt 0:00:03]} Bd6 {[%emt 0:00:05]} 32. Kh2 {[%emt 0:00:14]} Kh7 {[%emt 0:00:03]} 33. Qd1 {[%emt 0:00:10]} h5 {[%emt 0:00:21]} 34. Rc2 {[%emt 0:00:25]} Ra3 {[%emt 0:00:34]} 35. Qf3 {[%emt 0:00:35]} Ra1 {[%emt 0:00:03]} 36. Rf2 {[%emt 0:00:10]} Bb8 {[%emt 0:00:09]} 37. Rf1 {[%emt 0:00:11]} Ra3 {[%emt 0:00:03]} 38. Ne2 {[%emt 0:00:01]} Ba7 {[%emt 0:00:17]} 39. Bxa7 {[%emt 0:00:10]} Rxa7 {[%emt 0:00:00]} 40. Qe3 {[%emt 0:00:01]} Ra2 {[%emt 0:00:04]} 41. Rf2 {[%emt 0:00:04]} Qh6 {[%emt 0:00:14]} 42. Qg3 {[%emt 0:00:45]} Rd2 {[%emt 0:00:57]} 43. Kg1 {[%emt 0:00:43]} Rd1+ {[%emt 0:00:34]} 44. Rf1 {[%emt 0:00:02]} Rd2 {[%emt 0:00:28]} 45. Re1 {[%emt 0:00:11]} h4 {[%emt 0:00:18]} 46. Qf3 {[%emt 0:00:19]} Nh5 {[%emt 0:00:12]} 47. d4 {[%emt 0:00:04]} Qg5 {[%emt 0:00:13]} 48. dxe5 {[%emt 0:00:07]} Ng3 {[%emt 0:00:25]} 49. Nd4 {[%emt 0:00:05]} Qxe5 {[%emt 0:00:33]} 50. Nxc6 {[%emt 0:00:02]} Qg5 {[%emt 0:00:12]} 51. Nd4 {[%emt 0:00:00]} e5 {[%emt 0:00:09]} 52. Nf5 {[%emt 0:00:21]} Rc2 {[%emt 0:00:16]} 53. Kh2 {[%emt 0:00:14]} Nh5 {[%emt 0:00:08]} 54. Qg4 {[%emt 0:00:25]} Qxg4 {[%emt 0:00:01]} 55. hxg4 {[%emt 0:00:00]} Nf4 {[%emt 0:00:01]} 56. Nxh4 {[%emt 0:00:03]} Rxc3 {[%emt 0:00:11]} 57. Nf3 {[%emt 0:00:07]} Nd3 {[%emt 0:00:01]} 58. Re3 {[%emt 0:00:05]} Rb3 {[%emt 0:00:07]} 59. Nxe5 {[%emt 0:00:04]} Nc1 {[%emt 0:00:01]} 60. Rxb3 {[%emt 0:00:02]} Nxb3 {[%emt 0:00:00]} 61. Kg3 {[%emt 0:00:04]} Nd4 {[%emt 0:00:02]} 62. Kf4 {[%emt 0:00:06]} Kg8 {[%emt 0:00:02]} 63. Nd3 {[%emt 0:00:04]} Nc6 {[%emt 0:00:01]} 64. Kf5 {[%emt 0:00:03]} Kf7 {[%emt 0:00:01]} 65. Ne5+ {[%emt 0:00:01]} 1-0